fUST/lending_fUST_20260621
["ID","MTS","AMOUNT","RATE_DAILY","PERIOD"]
[425883558,1782021043000,-1000.0,0.00018,2]
[425883554,1782021043000,-1000.0,0.00018,2]
[425883556,1782021043000,-1000.0,0.00018,2]
[425883557,1782021043000,-1000.0,0.00018,2]
[425883562,1782021043000,-2158.569806,0.00018053,2]
[425883559,1782021043000,-1000.0,0.00018,2]
[425883561,1782021043000,-729.449679,0.00018,2]
[425883544,1782021043000,-1000.0,0.000179,2]
[425883555,1782021043000,-1000.0,0.00018,2]
[425883563,1782021043000,-500.0,0.00018082,2]
[425883564,1782021043000,-500.0,0.00018082,2]
[425883567,1782021043000,-500.0,0.00018082,2]
[425883565,1782021043000,-2537.77,0.00018082,2]
[425883566,1782021043000,-501.3,0.00018082,2]
[425883568,1782021043000,-500.0,0.00018082,2]
[425883569,1782021043000,-500.0,0.00018082,2]
[425883570,1782021043000,-500.0,0.00018082,2]
[425883573,1782021043000,-427.4689376,0.000181,2]
[425883571,1782021043000,-500.0,0.00018082,2]
[425883575,1782021043000,-222.434204,0.00018164,2]
[425883574,1782021043000,-218.65986,0.0001813,2]
[425883572,1782021043000,-189.18179385,0.000181,2]
[425883560,1782021043000,-1000.0,0.00018,2]
[425883547,1782021043000,-214.7050397,0.00018,2]
[425883511,1782021043000,-417.15472785,0.00017583,2]
[425883545,1782021043000,-500.0,0.00017942,2]
[425883543,1782021043000,-1000.0,0.000179,2]
[425883516,1782021043000,-160.0,0.00017619,2]
[425883520,1782021043000,-160.0,0.00017619,2]
[425883519,1782021043000,-160.0,0.00017619,2]
[425883518,1782021043000,-160.0,0.00017619,2]
[425883522,1782021043000,-500.0,0.00017668,2]
[425883517,1782021043000,-160.0,0.00017619,2]
[425883521,1782021043000,-160.0,0.00017619,2]
[425883525,1782021043000,-160.0,0.0001771,2]
[425883526,1782021043000,-160.0,0.0001771,2]
[425883527,1782021043000,-938.25057999,0.00017743,2]
[425883523,1782021043000,-160.0,0.00017677,2]
[425883524,1782021043000,-160.0,0.00017677,2]
[425883533,1782021043000,-500.0,0.00017808,2]
[425883515,1782021043000,-160.0,0.00017619,2]
[425883532,1782021043000,-500.0,0.00017808,2]
[425883531,1782021043000,-701.44123228,0.00017804,2]
[425883546,1782021043000,-945.46426022,0.00017998,7]
[425883542,1782021043000,-180.6,0.000179,2]
[425883540,1782021043000,-500.0,0.00017808,2]
[425883537,1782021043000,-500.0,0.00017808,2]
[425883539,1782021043000,-154.36217638,0.00017808,2]
[425883548,1782021043000,-1506.5812697,0.00018,2]
[425883529,1782021043000,-189.18179385,0.000178,2]
[425883536,1782021043000,-500.0,0.00017808,2]
[425883530,1782021043000,-427.4689376,0.000178,2]
[425883535,1782021043000,-501.3,0.00017808,2]
[425883528,1782021043000,-600.0,0.00017782,2]
[425883538,1782021043000,-500.0,0.00017808,2]
[425883534,1782021043000,-2537.77,0.00017808,2]
[425883609,1782021044000,-192.26453874,0.000185,2]
[425883611,1782021044000,-186.03794663,0.00018535,2]
[425883604,1782021044000,-3039.295916,0.000185,2]
[425883605,1782021044000,-2137.621981,0.000185,2]
[425883606,1782021044000,-1833.719276,0.000185,2]
[425883600,1782021044000,-192.26453874,0.000184,2]
[425883607,1782021044000,-1249.141607,0.000185,2]
[425883601,1782021044000,-3578.05491606,0.00018418,2]
[425883603,1782021044000,-175.61401197,0.00018496,2]
[425883610,1782021044000,-188.53462802,0.00018535,2]
[425883618,1782021044000,-190.18817789,0.00018535,2]
[425883614,1782021044000,-343.40928847,0.00018535,2]
[425883612,1782021044000,-184.09260936,0.00018535,2]
[425883615,1782021044000,-849.99832019,0.00018535,2]
[425883616,1782021044000,-192.67871066,0.00018535,2]
[425883617,1782021044000,-189.98999866,0.00018535,2]
[425883619,1782021044000,-152.69732701,0.00018535,2]
[425883622,1782021044000,-176.70856144,0.00018535,2]
[425883623,1782021044000,-183.20069393,0.00018535,2]
[425883602,1782021044000,-500.0,0.0001849,2]
[425883613,1782021044000,-636.33416789,0.00018535,2]
[425883595,1782021044000,-500.0,0.00018356,2]
[425883583,1782021044000,-294.30557935,0.00018236,7]
[425883599,1782021044000,-193.0,0.00018356,3]
[425883576,1782021044000,-162.902449,0.00018164,2]
[425883580,1782021044000,-303.720524,0.00018189,2]
[425883578,1782021044000,-249.751224,0.00018164,2]
[425883577,1782021044000,-280.973338,0.00018164,2]
[425883579,1782021044000,-171.103234,0.00018169,2]
[425883581,1782021044000,-192.26453874,0.000182,2]
[425883585,1782021044000,-189.18179385,0.000183,2]
[425883621,1782021044000,-182.14606161,0.00018535,2]
[425883582,1782021044000,-500.0,0.00018216,2]
[425883588,1782021044000,-375.0920934,0.00018356,2]
[425883584,1782021044000,-168.199891,0.00018257,2]
[425883586,1782021044000,-427.4689376,0.000183,2]
[425883589,1782021044000,-500.0,0.00018356,2]
[425883587,1782021044000,-2632.506807,0.00018322,2]
[425883590,1782021044000,-322.41466178,0.00018356,2]
[425883591,1782021044000,-500.0,0.00018356,2]
[425883592,1782021044000,-2537.77,0.00018356,2]
[425883593,1782021044000,-501.3,0.00018356,2]
[425883594,1782021044000,-500.0,0.00018356,2]
[425883596,1782021044000,-500.0,0.00018356,2]
[425883597,1782021044000,-500.0,0.00018356,2]
[425883598,1782021044000,-500.0,0.00018356,2]
[425883620,1782021044000,-190.16749572,0.00018535,2]
[425883608,1782021044000,-1662.411466,0.000185,2]
[425883627,1782021044000,-155.45005801,0.00018535,2]
[425883650,1782021044000,-500.0,0.00018904,2]
[425883651,1782021044000,-2537.77,0.00018904,2]
[425883652,1782021044000,-501.3,0.00018904,2]
[425883655,1782021044000,-500.0,0.00018904,2]
[425883654,1782021044000,-500.0,0.00018904,2]
[425883661,1782021044000,-300.0,0.00019178,2]
[425883662,1782021044000,-500.0,0.00019178,2]
[425883656,1782021044000,-500.0,0.00018904,2]
[425883657,1782021044000,-500.0,0.00018904,2]
[425883659,1782021044000,-1000.0,0.00019178,2]
[425883660,1782021044000,-750.0,0.00019178,2]
[425883663,1782021044000,-500.0,0.00019178,2]
[425883664,1782021044000,-2537.77,0.00019178,2]
[425883665,1782021044000,-501.3,0.00019178,2]
[425883666,1782021044000,-500.0,0.00019178,2]
[425883669,1782021044000,-500.0,0.00019178,2]
[425883667,1782021044000,-500.0,0.00019178,2]
[425883671,1782021044000,-351.22802393,0.00019268,2]
[425883670,1782021044000,-500.0,0.00019178,2]
[425883624,1782021044000,-277.76722024,0.00018535,2]
[425883668,1782021044000,-500.0,0.00019178,2]
[425883653,1782021044000,-500.0,0.00018904,2]
[425883648,1782021044000,-180.6,0.000189,2]
[425883658,1782021044000,-186.544807,0.00019026,2]
[425883646,1782021044000,-506.69958302,0.00018764,2]
[425883626,1782021044000,-185.23853609,0.00018535,2]
[425883649,1782021044000,-500.0,0.00018904,2]
[425883625,1782021044000,-150.08624259,0.00018535,2]
[425883629,1782021044000,-207.12256407,0.00018535,2]
[425883631,1782021044000,-246.14888163,0.00018535,2]
[425883630,1782021044000,-195.67520193,0.00018535,2]
[425883633,1782021044000,-234.06797921,0.00018535,2]
[425883628,1782021044000,-212.88873542,0.00018535,2]
[425883634,1782021044000,-1529.589625,0.00018595,2]
[425883636,1782021044000,-500.0,0.0001863,2]
[425883635,1782021044000,-500.0,0.0001863,2]
[425883632,1782021044000,-241.05905025,0.00018535,2]
[425883642,1782021044000,-500.0,0.0001863,2]
[425883637,1782021044000,-2537.77,0.0001863,2]
[425883639,1782021044000,-500.0,0.0001863,2]
[425883638,1782021044000,-501.3,0.0001863,2]
[425883641,1782021044000,-500.0,0.0001863,2]
[425883640,1782021044000,-500.0,0.0001863,2]
[425883643,1782021044000,-500.0,0.0001863,2]
[425883645,1782021044000,-2158.569806,0.00018728,2]
[425883644,1782021044000,-373.1932282,0.00018718,2]
[425883647,1782021044000,-1349.72975436,0.00018771,2]
[425883708,1782021045000,-500.0,0.00019452,2]
[425883709,1782021045000,-3578.05491606,0.00019511,2]
[425883705,1782021045000,-500.0,0.00019452,2]
[425883710,1782021045000,-720.0,0.0001956,2]
[425883704,1782021045000,-500.0,0.00019452,2]
[425883711,1782021045000,-300.0,0.00019589,3]
[425883703,1782021045000,-501.3,0.00019452,2]
[425883701,1782021045000,-500.0,0.00019452,2]
[425883702,1782021045000,-2537.77,0.00019452,2]
[425883707,1782021045000,-500.0,0.00019452,2]
[425883706,1782021045000,-500.0,0.00019452,2]
[425883723,1782021045000,-162.82401342,0.00019782,2]
[425883712,1782021045000,-1294.315624,0.00019689,2]
[425883716,1782021045000,-501.3,0.00019726,2]
[425883715,1782021045000,-2537.77,0.00019726,2]
[425883717,1782021045000,-500.0,0.00019726,2]
[425883718,1782021045000,-500.0,0.00019726,2]
[425883719,1782021045000,-500.0,0.00019726,2]
[425883720,1782021045000,-500.0,0.00019726,2]
[425883722,1782021045000,-162.23358759,0.00019782,2]
[425883721,1782021045000,-500.0,0.00019726,2]
[425883724,1782021045000,-188.32369835,0.00019782,2]
[425883699,1782021045000,-2158.569806,0.00019403,2]
[425883713,1782021045000,-500.0,0.00019726,2]
[425883700,1782021045000,-500.0,0.00019452,2]
[425883674,1782021045000,-372.07589325,0.00019308,2]
[425883695,1782021045000,-391.35040387,0.00019308,2]
[425883725,1782021045000,-187.65824582,0.00019782,2]
[425883672,1782021045000,-2786.626484,0.00019271,2]
[425883673,1782021045000,-377.06925603,0.00019308,2]
[425883675,1782021045000,-368.18521872,0.00019308,2]
[425883676,1782021045000,-686.81857694,0.00019308,2]
[425883677,1782021045000,-1272.66833578,0.00019308,2]
[425883681,1782021045000,-380.37635578,0.00019308,2]
[425883685,1782021045000,-353.41712288,0.00019308,2]
[425883683,1782021045000,-380.33499144,0.00019308,2]
[425883680,1782021045000,-379.97999733,0.00019308,2]
[425883679,1782021045000,-385.35742131,0.00019308,2]
[425883678,1782021045000,-1699.99664038,0.00019308,2]
[425883682,1782021045000,-305.39465402,0.00019308,2]
[425883684,1782021045000,-364.29212321,0.00019308,2]
[425883687,1782021045000,-247.30083432,0.00019308,2]
[425883686,1782021045000,-366.40138786,0.00019308,2]
[425883688,1782021045000,-247.13782287,0.00019308,2]
[425883690,1782021045000,-300.17248518,0.00019308,2]
[425883689,1782021045000,-555.53444047,0.00019308,2]
[425883691,1782021045000,-370.47707218,0.00019308,2]
[425883692,1782021045000,-310.90011602,0.00019308,2]
[425883693,1782021045000,-425.77747084,0.00019308,2]
[425883694,1782021045000,-414.24512814,0.00019308,2]
[425883698,1782021045000,-468.13595841,0.00019308,2]
[425883697,1782021045000,-482.11810051,0.00019308,2]
[425883696,1782021045000,-492.29776327,0.00019308,2]
[425883727,1782021045000,-526.8420359,0.00019782,2]
[425883714,1782021045000,-500.0,0.00019726,2]
[425883737,1782021045000,-1030.22786541,0.00019823,2]
[425883756,1782021045000,-833.30166071,0.00019823,2]
[425883761,1782021045000,-638.66620627,0.00019823,2]
[425883762,1782021045000,-161.66733136,0.00019823,2]
[425883760,1782021045000,-466.35017403,0.00019823,2]
[425883764,1782021045000,-160.58787055,0.00019823,2]
[425883765,1782021045000,-225.92387872,0.00019823,2]
[425883766,1782021045000,-153.16769172,0.00019823,2]
[425883774,1782021045000,-22650.9550066,0.0002,2]
[425883767,1782021045000,-587.0256058,0.00019823,2]
[425883769,1782021045000,-723.17715076,0.00019823,2]
[425883771,1782021045000,-180.6,0.000199,2]
[425883772,1782021045000,-628.66086992,0.00019968,2]
[425883768,1782021045000,-738.4466449,0.00019823,2]
[425883775,1782021045000,-5000.0,0.0002,2]
[425883773,1782021045000,-167.890326,0.00019977,2]
[425883776,1782021045000,-512050.21716061,0.0002,2]
[425883770,1782021045000,-702.20393762,0.00019823,2]
[425883777,1782021045000,-500.0,0.00017534,2]
[425883778,1782021045000,-500.0,0.00017808,2]
[425883780,1782021045000,-49.66057245,0.00018082,2]
[425883781,1782021045000,-344.67347659,0.00018356,2]
[425883779,1782021045000,-450.33942755,0.00018082,2]
[425883782,1782021045000,-155.32652341,0.00018356,2]
[425883783,1782021045000,-222.97481812,0.0001863,2]
[425883726,1782021045000,-165.83718626,0.00019782,2]
[425883763,1782021045000,-621.36769221,0.00019823,2]
[425883759,1782021045000,-555.71560827,0.00019823,2]
[425883728,1782021045000,-205.09426237,0.00019782,2]
[425883758,1782021045000,-450.25872778,0.00019823,2]
[425883738,1782021045000,-2549.99496058,0.00019823,2]
[425883754,1782021045000,-494.60166863,0.00019823,2]
[425883730,1782021045000,-232.70701268,0.00019823,2]
[425883729,1782021045000,-153.53210926,0.00019782,2]
[425883731,1782021045000,-157.98788382,0.00019823,2]
[425883736,1782021045000,-1909.00250367,0.00019823,2]
[425883733,1782021045000,-558.11383988,0.00019823,2]
[425883734,1782021045000,-552.27782808,0.00019823,2]
[425883732,1782021045000,-565.60388405,0.00019823,2]
[425883739,1782021045000,-167.83708489,0.00019823,2]
[425883740,1782021045000,-182.7536517,0.00019823,2]
[425883741,1782021045000,-578.03613197,0.00019823,2]
[425883743,1782021045000,-569.96999599,0.00019823,2]
[425883744,1782021045000,-570.56453367,0.00019823,2]
[425883757,1782021045000,-228.95451941,0.00019823,2]
[425883755,1782021045000,-494.27564574,0.00019823,2]
[425883752,1782021045000,-172.58472363,0.00019823,2]
[425883753,1782021045000,-549.60208178,0.00019823,2]
[425883750,1782021045000,-530.12568432,0.00019823,2]
[425883746,1782021045000,-155.35118595,0.00019823,2]
[425883748,1782021045000,-570.50248716,0.00019823,2]
[425883745,1782021045000,-458.09198103,0.00019823,2]
[425883742,1782021045000,-244.36180097,0.00019823,2]
[425883751,1782021045000,-235.77360805,0.00019823,2]
[425883749,1782021045000,-546.43818482,0.00019823,2]
[425883747,1782021045000,-194.88542714,0.00019823,2]
[425883795,1782021046000,-131.26967775,0.00019452,2]
[425883789,1782021046000,-600.0,0.00017045,2]
[425883790,1782021046000,-277.02518188,0.0001863,2]
[425883797,1782021046000,-500.0,0.00019726,2]
[425883793,1782021046000,-210.73032225,0.00018904,2]
[425883794,1782021046000,-500.0,0.00019178,2]
[425883792,1782021046000,-289.26967775,0.00018904,2]
[425883796,1782021046000,-368.73032225,0.00019452,2]
[425883798,1782021046000,-483.59864881,0.0002,2]
[425883791,1782021046000,-720.0,0.0001875,2]
[425883821,1782021068000,167.47612959,0.00023143,120]
[425883874,1782021819000,1462.76,0.00022896,30]
[425884042,1782022232000,-433.45811007,0.00010524,2]
[425884039,1782022232000,-850.38762055,0.00010524,2]
[425884110,1782022238000,-251.95618108,0.00012034,2]
[425884103,1782022238000,-300.0,0.00011872,2]
[425884105,1782022238000,-300.0,0.00011872,2]
[425884108,1782022238000,-300.0,0.00011872,2]
[425884107,1782022238000,-300.0,0.00011872,2]
[425884106,1782022238000,-300.0,0.00011872,2]
[425884102,1782022238000,-300.0,0.00011872,2]
[425884104,1782022238000,-300.0,0.00011872,2]
[425884099,1782022238000,-300.0,0.00011872,2]
[425884097,1782022238000,-300.0,0.00011872,2]
[425884098,1782022238000,-300.0,0.00011872,2]
[425884100,1782022238000,-300.0,0.00011872,2]
[425884095,1782022238000,-300.0,0.00011872,2]
[425884093,1782022238000,-300.0,0.00011069,2]
[425884094,1782022238000,-300.0,0.00011872,2]
[425884092,1782022238000,-151.0,0.0001063,2]
[425884091,1782022238000,-3716.15426938,0.00010524,2]
[425884090,1782022238000,-5000.0,0.00010419,2]
[425884101,1782022238000,-300.0,0.00011872,2]
[425884113,1782022238000,-1380.7556791,0.00013085,2]
[425884096,1782022238000,-300.0,0.00011872,2]
[425884109,1782022238000,-1611.46455865,0.00012,2]
[425884131,1782022238000,-894338.34203468,0.00016611,2]
[425884129,1782022238000,-500.0,0.00016438,2]
[425884125,1782022238000,-500.0,0.00016438,2]
[425884127,1782022238000,-500.0,0.00016438,2]
[425884126,1782022238000,-167.48831589,0.00016438,2]
[425884128,1782022238000,-500.0,0.00016438,2]
[425884130,1782022238000,-500.0,0.00016438,2]
[425884124,1782022238000,-500.0,0.00016438,2]
[425884123,1782022238000,-500.0,0.00016438,2]
[425884122,1782022238000,-1000.0,0.00016116,2]
[425884121,1782022238000,-2125.5363831,0.0001596,2]
[425884119,1782022238000,-864.0,0.00014651,2]
[425884118,1782022238000,-217.318828,0.00014326,2]
[425884116,1782022238000,-208.12773529,0.00014195,2]
[425884117,1782022238000,-11293.7585108,0.00014196,2]
[425884115,1782022238000,-500.0,0.00014195,2]
[425884114,1782022238000,-720.0,0.00013319,2]
[425884111,1782022238000,-600.0,0.00012108,2]
[425884120,1782022238000,-168.09,0.00015895,2]
[425884112,1782022238000,-433.45811007,0.00013,2]
[425884141,1782022240000,-2202.80426406,0.00016611,2]
[425884180,1782022243000,-6790.46515608,0.00016611,2]
[425884185,1782022243000,-21941.73,0.00016611,2]
[425884182,1782022243000,-1420.0,0.00016611,2]
[425884181,1782022243000,-7899.83401473,0.00016611,2]
[425884202,1782022246000,-3248.51008949,0.00016611,2]
[425884204,1782022246000,-280.2939363,0.00016611,2]
[425884203,1782022246000,-60851.64768976,0.00016611,2]
[425884271,1782023438000,-295.0568445,0.00013699,2]
[425884288,1782023438000,-300.0,0.00014477,2]
[425884285,1782023438000,-300.0,0.00014477,2]
[425884284,1782023438000,-300.0,0.00014477,2]
[425884286,1782023438000,-300.0,0.00014477,2]
[425884283,1782023438000,-300.0,0.00014477,2]
[425884282,1782023438000,-300.0,0.00014477,2]
[425884276,1782023438000,-300.0,0.00014477,2]
[425884277,1782023438000,-300.0,0.00014477,2]
[425884280,1782023438000,-300.0,0.00014477,2]
[425884287,1782023438000,-300.0,0.00014477,2]
[425884275,1782023438000,-300.0,0.00014477,2]
[425884274,1782023438000,-300.0,0.00014477,2]
[425884273,1782023438000,-1255.1269476,0.00014208,2]
[425884270,1782023438000,-153.61510959,0.00013229,2]
[425884269,1782023438000,-752.9522798,0.00012962,2]
[425884268,1782023438000,-221.13245884,0.00012832,2]
[425884272,1782023438000,-500.0,0.00014195,2]
[425884266,1782023438000,-151.0,0.00011141,2]
[425884267,1782023438000,-153.61510959,0.00012832,2]
[425884264,1782023438000,-1014.04943746,0.0001092,2]
[425884265,1782023438000,-882.08855886,0.0001103,2]
[425884263,1782023438000,-3156.3344958,0.00010811,2]
[425884290,1782023438000,-300.0,0.00014477,2]
[425884291,1782023438000,-300.0,0.00014477,2]
[425884289,1782023438000,-300.0,0.00014477,2]
[425884297,1782023438000,-500.0,0.00015777,2]
[425884293,1782023438000,-349.12620825,0.00014637,2]
[425884318,1782023438000,-1081.0,0.00015777,2]
[425884317,1782023438000,-1081.0,0.00015777,2]
[425884315,1782023438000,-1081.0,0.00015777,2]
[425884316,1782023438000,-1081.0,0.00015777,2]
[425884312,1782023438000,-1081.0,0.00015777,2]
[425884313,1782023438000,-1081.0,0.00015777,2]
[425884310,1782023438000,-1081.0,0.00015777,2]
[425884311,1782023438000,-272.93152539,0.00015777,2]
[425884307,1782023438000,-500.0,0.00015777,2]
[425884308,1782023438000,-1081.0,0.00015777,2]
[425884309,1782023438000,-500.0,0.00015777,2]
[425884314,1782023438000,-1081.0,0.00015777,2]
[425884304,1782023438000,-1081.0,0.00015777,2]
[425884295,1782023438000,-398.417848,0.00015696,2]
[425884306,1782023438000,-500.0,0.00015777,2]
[425884292,1782023438000,-600.0,0.00014477,2]
[425884298,1782023438000,-1081.0,0.00015777,2]
[425884299,1782023438000,-500.0,0.00015777,2]
[425884296,1782023438000,-500.0,0.00015777,2]
[425884300,1782023438000,-1081.0,0.00015777,2]
[425884302,1782023438000,-1081.0,0.00015777,2]
[425884301,1782023438000,-500.0,0.00015777,2]
[425884303,1782023438000,-500.0,0.00015777,2]
[425884305,1782023438000,-1081.0,0.00015777,2]
[425884294,1782023438000,-166.77,0.00015254,2]
[425884339,1782023439000,-500.0,0.00015889,2]
[425884343,1782023439000,-500.0,0.00015889,2]
[425884341,1782023439000,-500.0,0.00015889,2]
[425884342,1782023439000,-500.0,0.00015889,2]
[425884340,1782023439000,-500.0,0.00015889,2]
[425884347,1782023439000,-500.0,0.0001589,2]
[425884346,1782023439000,-500.0,0.00015889,2]
[425884351,1782023439000,-500.0,0.0001589,2]
[425884348,1782023439000,-500.0,0.0001589,2]
[425884345,1782023439000,-234.8264195,0.00015889,2]
[425884344,1782023439000,-500.0,0.00015889,2]
[425884350,1782023439000,-500.0,0.0001589,2]
[425884352,1782023439000,-500.0,0.0001589,2]
[425884338,1782023439000,-500.0,0.00015889,2]
[425884349,1782023439000,-500.0,0.0001589,2]
[425884337,1782023439000,-500.0,0.00015889,2]
[425884320,1782023439000,-1081.0,0.00015777,2]
[425884334,1782023439000,-500.0,0.00015889,2]
[425884319,1782023439000,-1081.0,0.00015777,2]
[425884323,1782023439000,-1081.0,0.00015777,2]
[425884322,1782023439000,-1081.0,0.00015777,2]
[425884321,1782023439000,-1081.0,0.00015777,2]
[425884324,1782023439000,-1081.0,0.00015777,2]
[425884326,1782023439000,-1081.0,0.00015777,2]
[425884325,1782023439000,-1081.0,0.00015777,2]
[425884327,1782023439000,-1081.0,0.00015777,2]
[425884329,1782023439000,-1867.21225652,0.0001579,2]
[425884328,1782023439000,-1100.26751251,0.00015777,2]
[425884330,1782023439000,-500.0,0.00015889,2]
[425884332,1782023439000,-500.0,0.00015889,2]
[425884331,1782023439000,-500.0,0.00015889,2]
[425884336,1782023439000,-500.0,0.00015889,2]
[425884335,1782023439000,-500.0,0.00015889,2]
[425884333,1782023439000,-500.0,0.00015889,2]
[425884354,1782023439000,-500.0,0.0001589,2]
[425884353,1782023439000,-500.0,0.0001589,2]
[425884361,1782023439000,-500.0,0.0001589,2]
[425884377,1782023439000,-500.0,0.00016062,2]
[425884376,1782023439000,-500.0,0.00016062,2]
[425884378,1782023439000,-500.0,0.00016062,2]
[425884357,1782023439000,-500.0,0.0001589,2]
[425884379,1782023439000,-500.0,0.00016062,2]
[425884381,1782023439000,-500.0,0.00016062,2]
[425884382,1782023439000,-151.5,0.00016062,2]
[425884383,1782023439000,-500.0,0.00016062,2]
[425884388,1782023439000,-500.0,0.00016198,2]
[425884384,1782023439000,-151.65376657,0.00016062,2]
[425884386,1782023439000,-500.0,0.00016164,2]
[425884387,1782023439000,-500.0,0.00016198,2]
[425884385,1782023439000,-413.49644347,0.00016062,2]
[425884389,1782023439000,-201443.37223381,0.00016234,2]
[425884390,1782023439000,-195117.66217052,0.00016234,2]
[425884373,1782023439000,-500.0,0.00016062,2]
[425884375,1782023439000,-500.0,0.00016062,2]
[425884380,1782023439000,-151.5,0.00016062,2]
[425884372,1782023439000,-210.6139152,0.00015962,2]
[425884362,1782023439000,-483.01980578,0.0001589,2]
[425884358,1782023439000,-500.0,0.0001589,2]
[425884374,1782023439000,-500.0,0.00016062,2]
[425884360,1782023439000,-500.0,0.0001589,2]
[425884359,1782023439000,-646.89809863,0.0001589,2]
[425884356,1782023439000,-500.0,0.0001589,2]
[425884364,1782023439000,-500.0,0.0001589,2]
[425884355,1782023439000,-500.0,0.0001589,2]
[425884365,1782023439000,-500.0,0.0001589,2]
[425884367,1782023439000,-500.0,0.0001589,2]
[425884366,1782023439000,-591.96778151,0.0001589,2]
[425884368,1782023439000,-589.71951205,0.0001589,2]
[425884370,1782023439000,-500.0,0.0001589,2]
[425884369,1782023439000,-151.5,0.0001589,2]
[425884371,1782023439000,-720.0,0.00015925,2]
[425884363,1782023439000,-500.0,0.0001589,2]
[425884462,1782023446000,-17306.07731911,0.00016234,2]
[425884461,1782023446000,-27146.32008452,0.00016234,2]
[425884504,1782023510000,-3552.48118121,0.00016234,2]
[425884535,1782024632000,-1496.69899845,0.00013499,2]
[425884534,1782024632000,-3112.6422798,0.00013364,2]
[425884533,1782024632000,-467.09929999,0.00013364,2]
[425884541,1782024638000,-1808.64032242,0.00014554,2]
[425884540,1782024638000,-918.17967758,0.00013499,2]
[425884545,1782024638000,-271.72,0.00015642,2]
[425884542,1782024638000,-132.22045248,0.00014554,2]
[425884543,1782024638000,-3950.414655,0.0001473,2]
[425884544,1782024638000,-178.240196,0.00014945,2]
[425884546,1782024638000,-227.746,0.00015713,2]
[425884547,1782024638000,-500.0,0.00015889,2]
[425884550,1782024638000,-36760.94919522,0.00015934,2]
[425884549,1782024638000,-3961.00959386,0.00015889,2]
[425884551,1782024638000,-498652.82639702,0.00015934,2]
[425884548,1782024638000,-500.0,0.00015889,2]
[425884557,1782024640000,-364.124706,0.00015934,2]
[425884556,1782024640000,-3297.16327413,0.00015934,2]
[425884558,1782024641000,-3319.60018019,0.00015934,2]
[425884563,1782024643000,-903.7632732,0.00015934,2]
[425884562,1782024643000,-255.81962886,0.00015934,2]
[425884666,1782024646000,-3830.4193555,0.00015934,2]
[425884686,1782024647000,-304.0,0.00015934,2]
[425891634,1782025062000,601.55347722,0.0001,2]
[425891696,1782025292000,-1392.13028429,0.00014146,2]
[425891698,1782025309000,-616.1357568,0.00014372,2]
[425891701,1782025326000,-1209.42523232,0.00014433,2]
[425891702,1782025342000,-245.36158535,0.00014433,7]
[425891704,1782025359000,-189.09285204,0.00014433,7]
[425891847,1782025832000,-1174.71251021,0.00014572,2]
[425891846,1782025832000,-660.77578699,0.00014572,2]
[425891845,1782025832000,-367.09765944,0.00014572,2]
[425891848,1782025832000,-692.60007171,0.00014572,2]
[425891850,1782025832000,-826.63212695,0.00014572,2]
[425891849,1782025832000,-1950.50307626,0.00014572,2]
[425891844,1782025832000,-427.88105927,0.00014234,2]
[425891920,1782025838000,-2770.92493557,0.00014572,2]
[425891922,1782025839000,-226.66188695,0.00014572,2]
[425891924,1782025839000,-407.9913965,0.00014572,2]
[425891926,1782025839000,-725.31803823,0.00014572,2]
[425891928,1782025839000,-1133.30943473,0.00014572,2]
[425891930,1782025839000,-1631.96558602,0.00014572,2]
[425891933,1782025839000,-245.36158535,0.00014722,7]
[425891932,1782025839000,-2219.06520559,0.00014572,2]
[425891935,1782025839000,-189.09285204,0.00014722,7]
[425891939,1782025839000,-3099.81854301,0.00015,3]